bitfinex/quotes_ETHUSD_20240610
["timestamp","ask_amount","ask_price","bid_price","bid_amount"]
[1718049741412,2.325,3657.9,3657.6,0.16170219]
[1718049741619,0.55,3657.8,3657.6,0.16170219]
[1718049743722,0.55,3657.8,3657.7,2.2927]
[1718049744088,0.428314,3658.6,3657.7,2.2927]
[1718049744504,2.73274,3659.4,3657.8,0.05467335]
[1718049744688,0.1738,3659.1,3657.8,0.16170219]
[1718049744895,1.0,3659.9,3658.2,2.73352]
[1718049745091,1.0,3659.9,3658.4,2.73342]
[1718049745525,1.0,3659.9,3658.5,3.0]
[1718049746714,1.0,3659.9,3658.4,2.73342]
[1718049747527,0.55,3659.8,3658.4,2.73342]
[1718049747727,0.705,3659.8,3658.5,0.273342]
[1718049748891,0.705,3659.8,3658.6,2.73327]
[1718049749089,0.55,3659.8,3658.9,2.73303]
[1718049749287,1.0,3660.0,3658.7,2.73315]
[1718049750596,0.55,3659.9,3658.7,2.73315]
[1718049751597,5.871,3660.7,3658.5,0.273342]
[1718049751598,1.0,3660.5,3658.6,2.3126]
[1718049751798,1.0,3660.5,3658.7,0.5585942]
[1718049752232,1.0,3660.5,3658.7,3.5585942]
[1718049752611,1.006,3660.9,3658.7,3.5585942]
[1718049752808,0.006,3661.0,3660.3,2.414]
[1718049753008,1.0,3661.8,3660.4,2.73188]
[1718049754900,0.55,3661.7,3660.4,2.73188]
[1718049756728,2.325,3661.3,3660.0,2.73222]
[1718049757029,0.55,3661.2,3660.0,2.73222]
[1718049757429,3.55,3661.2,3660.0,2.73222]
[1718049759002,0.55,3661.2,3660.3,2.73198]
[1718049759210,0.006,3661.7,3660.4,0.273198]
[1718049759405,1.0,3661.8,3659.7,3.0]
[1718049759625,0.006,3661.7,3659.7,3.0]
[1718049760308,0.006,3661.7,3660.5,2.73181]
[1718049760508,0.55,3661.7,3660.5,2.73181]
[1718049762426,0.55,3661.7,3660.8,2.73163]
[1718049762631,0.1556,3661.6,3660.8,2.73163]
[1718049762807,0.55,3661.5,3660.8,2.73163]
[1718049764819,0.55,3661.5,3659.9,2.7323]
[1718049765009,0.55,3661.5,3660.0,3.0]
[1718049765211,0.556,3661.7,3660.0,3.0]
[1718049765439,0.556,3661.7,3660.1,0.57323]
[1718049765648,0.55,3661.7,3660.1,0.57323]
[1718049766803,3.28103,3661.7,3660.0,3.0]
[1718049767011,2.325,3661.5,3659.7,3.0]
[1718049767331,0.55,3661.4,3659.7,3.0]
[1718049767511,1.0,3661.3,3659.6,9.32172022]
[1718049767710,0.3881,3661.2,3659.6,2.3563]
[1718049767906,3.73178,3660.7,3659.0,2.2952]
[1718049768148,1.0,3660.3,3658.8,0.61445362]
[1718049768368,1.0,3660.3,3658.4,2.2952]
[1718049768645,2.73226,3660.0,3658.4,2.2952]
[1718049769166,0.55,3659.9,3658.4,2.2952]
[1718049770228,0.55,3660.2,3658.5,2.73333]
[1718049770422,0.55,3660.2,3658.4,2.2952]
[1718049770423,0.55,3660.2,3658.7,2.73317]
[1718049770624,0.55,3660.4,3658.9,2.73301]
[1718049773391,0.55,3660.4,3659.1,2.73285]
[1718049774128,0.55,3660.4,3659.3,2.7327]
[1718049774843,1.0,3660.7,3659.5,2.73255]
[1718049775042,0.95,3660.6,3659.5,2.73255]
[1718049775964,0.95,3660.6,3659.7,2.73241]
[1718049776556,0.55,3660.6,3659.7,2.73241]
[1718049776773,0.55,3660.6,3659.9,2.73226]
[1718049777966,2.325,3661.0,3659.5,2.2649]
[1718049778469,2.325,3661.0,3660.1,2.73211]
[1718049778637,2.325,3661.0,3659.7,2.73239]
[1718049778837,0.67131,3660.9,3659.7,2.73239]
[1718049779037,0.67131,3660.9,3659.5,2.2649]
[1718049779038,0.67131,3660.9,3660.0,2.73223]
[1718049779240,0.67131,3660.9,3660.2,2.73204]
[1718049779546,9.771,3661.5,3660.4,2.73189]
[1718049779547,3.0,3661.4,3660.4,2.73189]
[1718049779749,3.55,3661.4,3660.4,2.73189]
[1718049780348,0.55,3661.4,3660.4,2.73189]
[1718049780544,2.325,3661.5,3660.6,2.73173]
[1718049780758,0.006,3661.9,3661.0,2.73142]
[1718049781087,0.39254,3661.8,3661.2,2.73129]
[1718049781909,0.006,3662.2,3661.4,2.73113]
[1718049782040,0.006,3662.5,3660.8,3.0]
[1718049782239,0.006,3662.5,3661.3,2.73122]
[1718049782467,0.006,3662.7,3660.8,3.56668777]
[1718049782683,0.006,3662.5,3661.0,2.73148]
[1718049782982,0.006,3662.6,3661.1,0.62981678]
[1718049783143,0.006,3662.6,3661.1,3.62981678]
[1718049783344,0.006,3662.6,3662.0,2.73073]
[1718049783654,0.006,3662.9,3662.0,2.73073]
[1718049785376,2.325,3662.8,3662.0,2.73073]
[1718049785668,0.8831,3662.7,3661.6,2.731]
[1718049785876,0.006,3662.6,3661.6,2.731]
[1718049786077,1.0,3662.4,3661.6,2.731]
[1718049786274,0.55,3662.3,3661.6,2.731]
[1718049786657,0.006,3662.5,3661.6,3.0041]
[1718049786856,0.556,3662.6,3661.6,3.0041]
[1718049788075,0.556,3662.6,3661.6,2.731]
[1718049789386,0.556,3662.6,3661.8,2.73083]
[1718049789683,0.006,3662.6,3661.8,2.73083]
[1718049789881,0.556,3662.7,3661.8,2.73083]
[1718049790083,0.556,3662.7,3662.1,2.73067]
[1718049790303,4.5944,3663.2,3662.1,2.73067]
[1718049790304,1.5944,3663.2,3662.1,2.73067]
[1718049790455,0.45944,3663.1,3662.1,2.73067]
[1718049790961,0.45944,3663.1,3662.3,2.73045]
[1718049791173,1.0,3663.2,3662.3,2.73045]
[1718049791473,1.0,3663.2,3661.3,3.0809]
[1718049791474,1.0,3663.6,3662.5,2.7303]
[1718049792347,1.0,3663.6,3662.7,2.73016]
[1718049793755,1.0,3663.6,3662.7,2.37016]
[1718049794479,0.55,3663.5,3662.7,2.37016]
[1718049794648,0.705,3663.5,3662.7,2.37016]
[1718049795352,0.55,3663.5,3662.7,2.37016]
[1718049795554,0.55,3663.5,3662.4,2.3969]
[1718049795555,0.5944,3664.2,3662.5,3.0]
[1718049796292,1.0,3664.4,3663.1,2.72985]
[1718049796453,1.0,3664.4,3663.4,2.72969]
[1718049798255,0.4,3664.3,3663.4,2.72969]
[1718049798704,3.325,3664.8,3663.6,2.7295]
[1718049799268,2.325,3664.3,3663.3,2.72976]
[1718049800086,2.72913,3664.2,3663.0,2.72999]
[1718049800291,2.325,3663.7,3662.7,2.73019]
[1718049800619,0.7825,3663.6,3662.7,2.73019]
[1718049800989,0.55,3663.6,3662.9,2.73]
[1718049801188,0.55,3663.9,3663.1,2.72987]
[1718049801424,1.0,3664.4,3663.3,2.72973]
[1718049801595,0.55,3664.3,3663.3,2.72973]
[1718049801798,0.5944,3664.7,3663.5,2.72957]
[1718049802113,0.4323,3664.6,3663.5,2.72957]
[1718049802286,0.4323,3664.6,3663.7,2.72942]
[1718049804402,0.55,3664.5,3663.7,2.72942]
[1718049805408,3.325,3665.2,3663.9,2.72928]
[1718049805616,1.155332,3665.1,3663.9,2.72928]
[1718049807200,1.155332,3665.1,3664.1,2.72912]
[1718049807406,1.155332,3665.1,3664.3,2.72899]
[1718049807598,0.55,3665.1,3664.3,2.72899]
[1718049809313,0.55,3665.4,3664.3,2.72899]
[1718049809517,0.55,3665.4,3664.5,2.72885]
[1718049809842,4.0,3665.6,3664.5,2.72885]
[1718049811129,4.0,3665.6,3664.2,2.72909]
[1718049811308,0.5944,3665.1,3663.9,2.7293]
[1718049811503,0.55,3665.0,3663.9,2.7293]
[1718049813247,2.7286,3664.9,3663.5,2.3282]
[1718049813461,2.325,3664.7,3663.5,2.72957]
[1718049813652,0.3875,3664.6,3663.5,2.72957]
[1718049813839,0.9375,3664.6,3663.5,2.72957]
[1718049814228,0.9375,3664.6,3663.7,2.72942]
[1718049817363,0.55,3664.6,3663.9,2.7293]
[1718049817541,0.55,3664.8,3663.9,2.7293]
[1718049818764,0.55,3665.1,3663.9,2.7293]
[1718049819582,3.27846,3665.1,3663.9,2.7293]
[1718049819796,2.72864,3664.9,3663.6,2.7295]
[1718049820095,0.55,3664.8,3663.6,2.7295]
[1718049823074,1.738,3664.7,3663.6,2.7295]
[1718049823233,0.55,3664.6,3663.6,2.7295]
[1718049826265,0.55,3664.6,3663.8,2.72939]
[1718049826475,0.2288,3664.5,3663.8,2.72939]
[1718049826768,0.55,3664.4,3663.8,2.72939]
[1718049827548,0.55,3664.4,3663.5,2.72957]
[1718049829268,0.55,3664.4,3663.3,0.56668777]
[1718049829269,1.738,3664.3,3663.3,0.56668777]
[1718049829565,1.738,3663.9,3663.2,2.72979]
[1718049829946,0.55,3663.8,3662.9,4.98901]
[1718049830156,0.55,3663.8,3662.9,6.2411218]
[1718049830471,0.55,3663.8,3662.9,4.98901]
[1718049831139,0.55,3663.8,3663.0,3.0]
[1718049832137,0.55,3663.8,3662.9,4.98901]
[1718049832347,0.55,3663.8,3662.9,2.73001]
[1718049834742,2.288,3663.8,3662.9,2.73001]
[1718049837549,0.55,3663.8,3663.1,2.72989]
[1718049837754,2.288,3664.1,3663.1,2.72989]
[1718049838765,2.72925,3664.0,3663.1,2.72989]
[1718049838966,0.55,3663.9,3663.1,2.72989]
[1718049839385,0.55,3664.0,3663.1,2.72989]
[1718049841285,1.051709,3664.0,3663.1,2.72989]
[1718049842094,2.72933,3663.9,3663.1,2.72989]
[1718049842261,0.55,3663.8,3663.1,2.72989]
[1718049843594,4.46751,3663.7,3662.8,3.29676777]
[1718049843888,0.55,3663.6,3662.9,3.0]
[1718049844261,0.55,3663.6,3663.0,2.72999]
[1718049844486,0.55,3663.6,3663.2,2.72983]
[1718049844689,0.55,3663.8,3663.2,2.72983]
[1718049848684,1.738,3663.7,3663.2,2.72983]
[1718049848995,0.55,3663.6,3663.2,2.72983]
[1718049851100,0.55,3663.6,3662.9,3.0]
[1718049851301,1.738,3663.3,3662.8,2.7301]
[1718049851499,0.55,3663.2,3662.8,2.7301]
[1718049857182,0.55,3663.2,3663.0,2.72994]
[1718049858517,1.5944,3664.3,3663.6,2.72955]
[1718049858716,1.738,3664.0,3663.6,2.72955]
[1718049858884,1.5944,3664.3,3663.8,2.72938]
[1718049859089,1.738,3664.1,3663.8,2.72938]
[1718049860313,0.55,3664.0,3663.8,2.72938]
[1718049861010,0.55,3664.0,3663.2,3.29647777]
[1718049861011,1.5944,3663.8,3663.2,3.29647777]
[1718049861213,1.738,3663.3,3663.2,2.72979]
[1718049861615,2.288,3663.3,3663.2,2.72979]
[1718049862004,2.288,3663.3,3662.9,2.73001]
[1718049862210,0.55,3663.2,3662.9,2.73001]
[1718049863486,0.7788,3663.2,3662.9,2.73001]
[1718049863728,0.7788,3663.2,3662.5,6.96542022]
[1718049863895,1.738,3662.6,3662.5,6.96542022]
[1718049864098,2.288,3662.6,3662.5,6.96542022]
[1718049864629,2.288,3662.6,3662.3,2.73047]
[1718049864831,0.55,3662.5,3662.0,0.04738373]
[1718049865388,2.288,3662.8,3662.0,0.04738373]
[1718049866129,2.288,3662.8,3662.0,0.38188588]
[1718049868434,2.288,3662.8,3662.0,0.04738373]
[1718049868792,5.01818,3662.8,3662.0,0.04738373]
[1718049869836,2.73035,3662.6,3662.0,0.04738373]
[1718049869991,4.46848,3662.4,3661.4,0.56668777]
[1718049870195,1.738,3661.8,3661.2,0.56668777]
[1718049870391,1.738,3661.8,3661.1,0.56668777]
[1718049870692,0.55,3661.7,3661.1,0.56668777]
[1718049871000,0.55,3661.7,3661.0,0.04740221]
[1718049871905,0.55,3661.7,3661.0,3.04740221]
[1718049872227,0.55,3661.7,3661.0,0.04740221]
[1718049873328,2.73106,3661.6,3661.0,0.04740221]
[1718049873537,0.55,3661.5,3661.0,0.04740221]
[1718049873697,0.55,3661.5,3660.7,2.2793]
[1718049874061,1.738,3661.0,3660.5,0.0474055]
[1718049874213,2.73157,3660.9,3660.5,0.0474055]
[1718049874569,0.55,3660.8,3660.0,4.9992]
[1718049874851,0.55,3660.8,3660.1,0.49992]
[1718049876012,0.55,3660.8,3660.1,3.49992]
[1718049878023,0.55,3661.1,3660.1,3.49992]
[1718049879141,2.73152,3661.0,3660.1,3.49992]
[1718049879317,0.55,3660.9,3660.1,3.49992]
[1718049879521,0.55,3660.9,3660.2,0.27276031]
[1718049881970,2.73128,3661.3,3660.2,3.00479031]
[1718049882258,0.55,3661.2,3660.2,3.00479031]
[1718049882464,1.738,3661.4,3660.2,0.27276031]
[1718049882678,2.73108,3661.6,3660.2,0.27276031]
[1718049882860,2.73108,3661.6,3660.4,2.4258]
[1718049883168,2.73108,3661.6,3660.8,2.7316]
[1718049884662,0.55,3661.5,3660.8,2.7316]
[1718049885775,1.0,3662.2,3660.4,5.4258]
[1718049885776,5.46864,3662.2,3660.4,5.4258]
[1718049886335,5.46864,3662.2,3660.9,2.73153]
[1718049886548,5.46864,3662.2,3661.0,0.273153]
[1718049886859,5.46864,3662.2,3661.1,2.73141]
[1718049887447,1.738,3661.8,3661.0,0.273153]
[1718049887650,0.55,3661.7,3660.9,3.0]
[1718049889342,2.73104,3661.6,3660.9,3.0]
[1718049889542,0.55,3661.5,3660.9,3.0]
[1718049899510,3.28113,3661.5,3660.9,3.0]
[1718049899709,3.28113,3661.5,3660.6,3.0]
[1718049900318,2.73128,3661.3,3660.6,3.0]
[1718049900621,0.55,3661.2,3660.5,2.73182]
[1718049900818,0.55,3661.2,3660.2,3.3201688]
[1718049900819,2.73143,3661.1,3660.2,6.0521988]
[1718049901020,0.55,3661.0,3660.3,3.0]
[1718049901191,1.738,3660.8,3660.2,2.73203]
[1718049901684,0.55,3660.7,3660.2,2.73203]
[1718049903026,0.55,3660.7,3659.9,5.73229]
[1718049903329,3.28173,3660.7,3659.9,2.73229]
[1718049903684,3.883703,3660.7,3659.9,2.73229]
[1718049903887,1.151973,3660.7,3659.9,2.73229]
[1718049904120,0.55,3660.7,3659.9,2.73229]
[1718049904323,0.55,3660.7,3660.1,2.73215]
[1718049906329,0.55,3660.7,3659.5,3.0]
[1718049906330,0.55,3660.7,3659.8,2.73232]
[1718049906997,2.73179,3660.6,3659.8,2.73232]
[1718049907197,0.55,3660.5,3659.8,2.73232]
[1718049909219,0.55,3660.5,3659.9,0.273232]
[1718049910048,1.0,3661.4,3659.9,0.273232]
[1718049910194,1.0,3661.4,3659.8,2.4469]
[1718049910394,1.0,3661.4,3660.5,2.7318]
[1718049910626,1.0,3661.4,3660.7,2.73166]
[1718049910811,1.738,3661.6,3660.9,2.73152]
[1718049911014,0.5944,3661.9,3661.1,2.73137]
[1718049911233,1.738,3662.0,3661.1,2.73137]
[1718049911541,2.284868,3662.0,3661.1,2.73137]
[1718049913018,0.55,3661.9,3661.1,2.73137]
[1718049913414,2.288,3662.0,3661.1,2.73137]
[1718049913653,2.73084,3661.9,3661.1,2.73137]
[1718049913954,1.051884,3661.8,3661.1,2.73137]
[1718049914542,1.738,3661.6,3660.8,2.73161]
[1718049914740,0.55,3661.5,3660.8,2.73161]
[1718049915115,0.55,3661.5,3661.0,2.73145]
[1718049919316,0.55,3661.5,3661.2,2.73131]
[1718049922943,0.725,3661.3,3661.2,2.73131]
[1718049923132,1.275,3661.3,3661.2,2.73131]
[1718049925465,1.0,3662.2,3661.6,2.73101]
[1718049925665,0.725,3661.7,3661.6,2.73101]
[1718049925965,1.0,3662.2,3661.6,2.73101]
[1718049926173,1.0,3662.8,3661.2,0.56668777]
[1718049926342,0.725,3662.2,3662.1,2.73067]
[1718049926661,1.0,3662.8,3662.1,2.73067]
[1718049926662,0.725,3662.3,3662.1,2.73067]
[1718049926869,0.725,3662.2,3662.1,2.73067]
[1718049927463,1.0,3662.8,3661.6,2.73104]
[1718049927782,0.2288,3663.2,3661.6,2.73104]
[1718049927783,1.2288,3663.2,3662.4,2.4048]
[1718049927992,0.725,3662.5,3662.4,2.4048]
[1718049928345,1.275,3662.5,3662.4,2.4048]
[1718049928869,0.55,3662.5,3662.4,2.4048]
[1718049929845,1.0,3663.6,3662.8,2.73014]
[1718049930050,0.421444,3663.5,3662.4,2.4048]
[1718049930247,1.0,3663.6,3663.0,2.72997]
[1718049931687,1.739,3664.1,3663.4,2.72965]
[1718049931983,1.739,3664.1,3663.5,0.05788366]
[1718049932393,1.739,3664.1,3663.4,2.72965]
[1718049932694,2.72891,3664.5,3662.5,3.29701777]
[1718049932695,4.46791,3664.5,3663.6,2.72949]
[1718049932847,0.606231,3664.4,3663.6,2.72949]
[1718049933049,0.606231,3664.4,3663.7,0.05681872]
[1718049934058,2.72905,3664.3,3663.7,0.05681872]
[1718049934259,1.739,3664.1,3663.6,2.72949]
[1718049934591,0.55,3664.0,3663.6,2.72949]
[1718049934752,1.051805,3664.0,3663.6,2.72949]
[1718049936454,1.051805,3664.0,3663.3,2.72977]
[1718049936783,1.051805,3664.0,3663.4,0.05674224]
[1718049938631,1.739,3663.7,3663.4,0.05674224]
[1718049939100,0.55,3663.6,3663.4,0.05674224]
[1718049939595,0.55,3663.6,3663.3,2.72977]
[1718049940569,0.55,3663.9,3663.3,2.72977]
[1718049941008,1.0281035,3663.9,3663.3,2.72977]
[1718049941207,0.55,3663.9,3663.5,2.72958]
[1718049941412,3.3334,3664.6,3663.7,2.72944]
[1718049942004,3.3334,3664.6,3663.8,0.05602176]
[1718049942285,3.3334,3664.6,3663.9,2.72931]
[1718049942792,2.72889,3664.5,3663.9,2.72931]
[1718049942991,0.606229,3664.4,3663.9,2.72931]
[1718049943193,2.739,3664.6,3663.9,2.72931]
[1718049943488,0.55,3664.5,3664.0,0.05602176]
[1718049943802,0.55,3664.5,3663.9,2.72931]
[1718049944382,0.55,3664.5,3664.0,0.05602176]
[1718049945111,1.895779,3664.5,3664.0,0.05602176]
[1718049946270,1.895779,3664.5,3664.1,2.72917]
[1718049946917,0.55,3664.5,3664.1,2.72917]
[1718049947117,0.55,3664.5,3664.2,0.0556139]
[1718049947681,3.72856,3665.0,3664.3,2.72903]
[1718049948017,2.739,3665.0,3664.5,2.72885]
[1718049948417,2.739,3665.0,3664.6,0.05534622]
[1718049949327,3.285732,3665.0,3664.6,0.05534622]
[1718049949515,0.55,3664.9,3664.6,0.05534622]
[1718049950092,0.55,3664.9,3664.7,2.72873]
[1718049951200,0.55,3664.9,3663.9,2.72931]
[1718049951201,9.0344,3665.8,3665.1,2.72842]
[1718049951434,3.88904,3665.7,3665.1,2.72842]
[1718049951656,1.739,3665.7,3665.1,2.72842]
[1718049952228,1.739,3665.7,3665.2,0.05494486]
[1718049953228,0.55,3665.6,3665.2,0.05494486]
[1718049953728,0.55,3665.6,3665.3,2.72828]
[1718049953952,0.55,3665.7,3665.3,2.72828]
[1718049954262,1.151681,3665.7,3665.4,0.05494486]
[1718049954469,1.151681,3665.7,3665.5,2.72814]
[1718049954470,0.55,3665.7,3665.5,2.72814]
[1718049954948,0.55,3665.7,3665.6,0.0546901]
[1718049955158,0.55,3666.0,3665.6,0.0546901]
[1718049956424,0.55,3666.0,3665.5,2.72814]
[1718049956758,0.55,3666.0,3665.7,0.0546901]
[1718049956922,1.151659,3666.0,3665.5,2.72814]
[1718049957122,0.55,3666.0,3665.5,2.72814]
[1718049957357,0.55,3666.0,3665.6,0.0546901]
[1718049957758,3.006,3666.6,3665.7,2.72797]
[1718049958060,1.739,3666.4,3665.8,0.0546901]
[1718049958361,2.585629,3666.4,3665.8,0.0546901]
[1718049958662,2.585629,3666.4,3665.7,2.72797]
[1718049958663,3.0,3666.3,3665.7,2.72797]
[1718049959039,0.55,3666.2,3665.8,0.05380473]
[1718049959248,0.55,3666.3,3665.7,2.72797]
[1718049959442,0.55,3666.3,3665.9,0.05380473]
[1718049959659,0.55,3666.3,3665.7,2.72797]
[1718049960170,0.55,3666.3,3665.8,0.05380473]
[1718049960465,0.55,3666.3,3665.4,2.72816]
[1718049960466,2.1363059,3666.3,3665.4,2.72816]
[1718049960630,1.739,3666.0,3665.4,2.72816]
[1718049960830,0.55,3665.9,3665.5,0.05380473]
[1718049962604,0.55,3665.9,3665.4,2.72816]
[1718049963783,4.27787,3665.9,3665.1,2.72839]
[1718049963989,1.739,3665.5,3665.1,2.72839]
[1718049964159,0.55,3665.4,3665.1,2.72839]
[1718049964860,0.55,3665.4,3664.8,2.72862]
[1718049965056,0.55,3665.4,3665.0,2.72848]
[1718049975820,0.55,3665.4,3665.1,0.05202221]
[1718049976036,1.739,3665.2,3664.1,9.26592022]
[1718049976324,1.739,3664.8,3664.4,2.7289]
[1718049976539,0.55,3664.7,3664.4,2.7289]
[1718049976926,0.55,3664.7,3664.1,2.72913]
[1718049977327,0.55,3664.7,3663.6,5.71982777]
[1718049977644,0.55,3664.7,3663.7,0.65698594]
[1718049977807,0.55,3664.7,3663.7,3.65698594]
[1718049978335,0.55,3664.7,3664.4,2.72894]
[1718049979139,0.55,3664.8,3664.4,2.72894]
[1718049980627,0.55,3664.8,3664.1,2.72912]
[1718049981307,2.72874,3664.7,3664.1,2.72912]
[1718049981527,0.55,3664.6,3664.1,2.72912]
[1718049982124,2.289,3664.6,3664.1,2.72912]
[1718049982435,2.72893,3664.5,3663.8,2.72935]
[1718049982641,0.55,3664.4,3663.8,3.61034359]
[1718049983049,1.739,3664.2,3663.6,2.4236]
[1718049983250,0.55,3664.1,3663.5,2.72956]
[1718049984274,0.55,3664.1,3663.7,2.72945]
[1718049985941,0.55,3664.1,3663.4,2.72966]
[1718049986141,0.55,3664.1,3663.4,3.252196]
[1718049986343,0.55,3664.1,3663.6,2.72948]
[1718049989284,1.739,3664.2,3663.6,2.72948]
[1718049990449,0.55,3664.1,3663.6,2.72948]
[1718049990862,0.55,3664.1,3663.7,0.05287497]
[1718049992215,3.27922,3664.1,3663.7,0.05287497]
[1718049992505,3.27922,3664.1,3663.3,2.72972]
[1718049992663,3.27922,3664.1,3663.8,0.05287497]
[1718049992863,3.27922,3664.1,3663.3,2.72972]
[1718049993084,3.27922,3664.1,3663.9,0.05353704]
[1718049993294,3.27922,3664.1,3663.3,2.72972]
[1718049993504,3.27922,3664.1,3664.0,0.05361981]
[1718049993994,3.27922,3664.1,3663.3,2.72972]
[1718049994385,2.72935,3663.9,3663.4,0.05361981]
[1718049994588,1.739,3663.7,3663.4,0.05361981]
[1718049994761,0.55,3663.6,3663.0,2.72994]
[1718049995165,0.55,3663.6,3663.1,0.05361344]
[1718049995492,2.72963,3663.5,3663.1,0.05361344]
[1718049995668,0.55,3663.4,3663.1,0.05361344]
[1718049997863,0.55,3663.4,3662.9,2.73005]
[1718049998069,0.55,3663.4,3663.2,0.05361344]
[1718049998280,0.55,3663.4,3662.9,2.73005]
[1718049998475,0.55,3663.4,3663.3,0.05361344]
[1718049998679,0.55,3663.4,3662.9,2.73005]
[1718049998891,0.55,3663.4,3663.3,0.05361344]
[1718049999096,1.274,3663.4,3662.9,2.73005]
[1718049999310,0.55,3663.4,3663.3,0.05361344]
[1718049999472,2.72978,3663.3,3662.6,2.73023]
[1718049999673,0.724,3662.7,3662.6,2.73023]
[1718050001397,0.55,3663.4,3662.8,2.73008]
[1718050001593,0.55,3663.4,3662.5,0.88335072]
[1718050001594,0.724,3662.9,3662.5,3.61366072]
[1718050001807,0.724,3662.6,3662.5,3.61366072]
[1718050002010,0.724,3662.6,3662.5,2.73031]
[1718050002873,1.739,3663.1,3662.5,2.73031]
[1718050003110,0.55,3663.0,3662.5,2.73031]
[1718050006023,0.55,3663.0,3662.6,0.05361344]
[1718050006024,1.739,3662.7,3662.6,0.05361344]
[1718050006181,1.9679,3662.7,3662.6,0.05361344]
[1718050006377,1.9679,3662.7,3662.2,2.73055]
[1718050006378,2.5179,3662.7,3662.2,2.73055]
[1718050006614,1.739,3662.7,3662.3,0.05441585]
[1718050006820,1.739,3662.7,3662.2,2.73055]
[1718050006821,0.55,3662.6,3662.2,2.73055]
[1718050007012,0.55,3662.6,3662.4,0.05441585]
[1718050007210,0.55,3662.6,3662.2,2.73055]
[1718050007456,0.55,3662.6,3662.5,0.05441585]
[1718050007758,4.46923,3662.7,3661.9,2.73076]
[1718050008048,0.55,3662.6,3662.0,0.05461969]
[1718050008344,0.55,3662.6,3662.1,2.73066]
[1718050008840,2.73038,3662.5,3662.2,0.05469614]
[1718050009046,0.55,3662.4,3661.8,2.73085]
[1718050009227,1.739,3662.3,3661.8,2.73085]
[1718050009422,0.55,3662.2,3661.8,2.73085]
[1718050010342,1.739,3661.9,3661.5,2.73106]
[1718050010709,0.55,3661.8,3661.5,2.73106]
[1718050016097,0.55,3661.8,3661.2,2.73132]
[1718050017067,3.28093,3661.8,3661.2,2.73132]
[1718050017889,3.28093,3661.8,3660.9,5.3839]
[1718050018076,2.73106,3661.6,3661.0,3.0]
[1718050018256,2.73106,3661.6,3660.5,2.48658944]
[1718050018450,0.55,3661.5,3660.6,4.54865894]
[1718050018656,2.73121,3661.4,3660.7,3.0]
[1718050018971,0.55,3661.3,3660.7,3.0]
[1718050019503,0.55,3661.3,3660.1,2.73209]
[1718050019504,1.739,3661.1,3660.1,2.4045]
[1718050019669,1.739,3661.1,3660.2,4.0]
[1718050019872,0.55,3661.0,3660.3,0.64045]
[1718050020355,0.55,3661.0,3660.1,2.45190268]
[1718050020867,0.55,3661.0,3660.2,0.05444052]
[1718050021076,0.55,3661.0,3660.2,3.05444052]
[1718050021279,0.55,3661.0,3660.2,0.05444052]
[1718050021895,1.739,3660.7,3660.2,2.78647052]
[1718050022100,1.739,3660.3,3660.2,0.05444052]
[1718050022300,1.739,3660.3,3659.9,2.73226]
[1718050022504,1.739,3660.3,3660.2,0.05470193]
[1718050022799,2.289,3660.3,3659.9,2.73226]
[1718050022979,1.739,3660.3,3660.2,0.05470193]
[1718050023185,0.55,3660.2,3659.9,2.73226]
[1718050023763,0.55,3660.2,3659.6,2.73253]
[1718050024083,1.739,3659.9,3659.7,0.05470193]
[1718050024615,0.55,3659.8,3659.7,0.05470193]
[1718050024977,0.55,3659.8,3658.6,2.3084]
[1718050024978,1.0,3659.3,3658.6,2.73321]
[1718050025186,1.739,3658.9,3658.6,2.73321]
[1718050025672,0.55,3658.8,3658.2,2.73351]
[1718050028586,1.052191,3658.8,3658.2,2.73351]
[1718050028801,1.739,3658.5,3657.8,2.73381]
[1718050028999,0.55,3658.4,3657.8,2.73381]
[1718050029225,1.739,3658.1,3657.8,2.73381]
[1718050029534,0.55,3658.0,3657.8,2.73381]
[1718050030046,0.55,3658.0,3657.4,2.73412]
[1718050030216,0.55,3658.0,3657.9,0.05585123]
[1718050030544,0.55,3658.0,3657.4,2.73412]
[1718050030753,0.7789,3658.0,3657.9,0.05622156]
[1718050030916,2.73381,3657.9,3657.0,2.73442]
[1718050031255,1.739,3657.5,3656.6,2.7347]
[1718050031400,1.0,3657.0,3656.6,2.7347]
[1718050031599,1.739,3656.7,3656.2,6.78244885]
[1718050032237,0.55,3656.6,3656.2,2.73502]
[1718050033304,0.55,3656.6,3656.3,0.17872347]
[1718050033941,1.0,3657.4,3656.4,2.73493]
[1718050034110,1.739,3657.3,3656.7,2.73467]
[1718050034312,0.55,3657.2,3656.7,2.73467]
[1718050034914,1.0,3657.8,3657.0,2.73443]
[1718050035117,1.0,3658.0,3657.6,2.734]
[1718050035329,1.0,3658.5,3657.6,2.734]
[1718050035532,7.44,3658.7,3657.9,2.73378]